fUST/lending_fUST_20251002
["ID","MTS","AMOUNT","RATE_DAILY","PERIOD"]
[388730139,1759339856256,-631.17,0.0002,2]
[388730140,1759339856268,-176.319987,0.0002,2]
[388730141,1759339856277,-500.0,0.0002,2]
[388730142,1759339856287,-500.0,0.0002,2]
[388730143,1759339856299,-541.59,0.0002,2]
[388730144,1759339856308,-500.0,0.0002,2]
[388730145,1759339856319,-500.0,0.0002,2]
[388730146,1759339856329,-747.86,0.0002,2]
[388730147,1759339856338,-619.67,0.0002,2]
[388730148,1759339856347,-269.66,0.0002,2]
[388730149,1759339856356,-500.0,0.0002,2]
[388730150,1759339856365,-152.058826,0.0002,2]
[388730151,1759339856375,-500.0,0.0002,2]
[388730152,1759339856384,-500.0,0.0002,2]
[388730153,1759339856393,-500.0,0.0002,2]
[388730154,1759339856402,-1088.66,0.0002,2]
[388730155,1759339856411,-1596.15,0.0002,2]
[388730156,1759339856420,-500.0,0.0002,2]
[388730157,1759339856429,-500.0,0.0002,2]
[388730158,1759339856438,-891.76,0.0002,2]
[388730159,1759339856447,-975.15,0.0002,2]
[388730160,1759339856456,-500.0,0.0002,2]
[388730161,1759339856465,-626.45,0.0002,2]
[388730162,1759339856474,-782.15,0.0002,2]
[388730163,1759339856483,-480.0,0.0002,2]
[388730164,1759339856492,-939.17,0.0002,2]
[388730165,1759339856501,-151.0,0.0002,2]
[388730166,1759339856510,-712.07,0.0002,2]
[388730167,1759339856519,-500.0,0.0002,2]
[388730168,1759339856528,-151.0,0.0002,2]
[388730169,1759339856537,-500.0,0.0002,2]
[388730170,1759339856546,-500.0,0.0002,2]
[388730171,1759339856556,-500.0,0.0002,2]
[388730172,1759339856565,-500.0,0.0002,2]
[388730173,1759339856574,-500.0,0.0002,2]
[388730174,1759339856583,-699.88,0.0002,2]
[388730175,1759339856592,-500.0,0.0002,2]
[388730176,1759339856602,-500.0,0.0002,2]
[388730177,1759339856611,-500.0,0.0002,2]
[388730178,1759339856620,-381.08212739,0.0002,2]
[388730179,1759339856629,-500.0,0.0002,2]
[388730180,1759339856638,-502.97,0.0002,2]
[388730181,1759339856647,-500.0,0.0002,2]
[388730182,1759339856656,-757.85,0.0002,2]
[388730183,1759339856665,-500.0,0.0002,2]
[388730184,1759339856674,-500.0,0.0002,2]
[388730185,1759339856683,-644.97,0.0002,2]
[388730186,1759339856692,-500.0,0.0002,2]
[388730187,1759339856701,-612.11414966,0.0002,2]
[388730188,1759339856710,-542.85,0.0002,2]
[388730189,1759339856719,-4000.0,0.0002,4]
[388730190,1759339856728,-151.0,0.0002,2]
[388730191,1759339856738,-551.56,0.0002,2]
[388730192,1759339856748,-500.0,0.0002,2]
[388730193,1759339856757,-500.0,0.0002,2]
[388730194,1759339856766,-203.36210868,0.0002,2]
[388730195,1759339856775,-500.0,0.0002,2]
[388730196,1759339856785,-1584.59,0.0002,2]
[388730197,1759339856794,-572.93,0.0002,2]
[388730198,1759339856803,-646.18,0.0002,2]
[388730199,1759339856812,-1971.64,0.0002,2]
[388730200,1759339856821,-500.0,0.0002,2]
[388730201,1759339856830,-500.0,0.0002,2]
[388730202,1759339856839,-151.0,0.0002,2]
[388730203,1759339856848,-1806.04,0.0002,2]
[388730204,1759339856857,-151.0,0.0002,2]
[388730205,1759339856866,-500.0,0.0002,2]
[388730206,1759339856875,-500.0,0.0002,2]
[388730207,1759339856883,-205.931712,0.0002,2]
[388730208,1759339856893,-1015.63,0.0002,2]
[388730209,1759339856901,-151.0,0.0002,2]
[388730210,1759339856909,-500.0,0.0002,2]
[388730211,1759339856917,-500.0,0.0002,2]
[388730212,1759339856926,-222.45531,0.0002,2]
[388730213,1759339856933,-160.19102542,0.00020021,2]
[388730214,1759339856941,-511.41131084,0.00020021,2]
[388730215,1759339856949,-1000.0,0.00020021,2]
[388730216,1759339856956,-796.90833631,0.00020021,2]
[388730217,1759339856964,-1000.0,0.00020021,2]
[388730218,1759339856973,-240.86186039,0.00020075,2]
[388730219,1759339856983,-240.86186029,0.00020075,2]
[388730220,1759339856992,-240.86186029,0.00020075,2]
[388730221,1759339857001,-240.86186029,0.00020075,2]
[388730222,1759339857011,-240.86186029,0.00020075,2]
[388730223,1759339857020,-151.0,0.000201,3]
[388730224,1759339857029,-1446.83555857,0.00020173,2]
[388730225,1759339857038,-151.0,0.000202,4]
[388730226,1759339857047,-151.0,0.000202,3]
[388730227,1759339857056,-151.0,0.000202,4]
[388730228,1759339857065,-1445.50922,0.00020218,2]
[388730229,1759339857075,-500.0,0.00020273,2]
[388730230,1759339857084,-500.0,0.00020273,2]
[388730231,1759339857093,-500.0,0.00020273,2]
[388730232,1759339857103,-500.0,0.00020273,2]
[388730233,1759339857112,-222.3,0.00020273,2]
[388730234,1759339857124,-440.0,0.00020273,2]
[388730235,1759339857133,-456.78,0.00020273,2]
[388730236,1759339857142,-500.0,0.00020273,2]
[388730237,1759339857151,-500.0,0.00020273,2]
[388730238,1759339857160,-500.0,0.00020273,2]
[388730239,1759339857169,-500.0,0.00020273,2]
[388730240,1759339857178,-500.0,0.00020273,2]
[388730241,1759339857188,-500.0,0.00020273,2]
[388730242,1759339857197,-480.0,0.00020273,2]
[388730243,1759339857207,-500.0,0.00020273,2]
[388730244,1759339857216,-271.22438043,0.00020273,2]
[388730245,1759339857229,-500.0,0.00020273,2]
[388730246,1759339857238,-500.0,0.00020273,2]
[388730247,1759339857247,-500.0,0.00020273,2]
[388730248,1759339857257,-500.0,0.00020273,2]
[388730249,1759339857267,-500.0,0.00020273,2]
[388730250,1759339857276,-500.0,0.00020273,2]
[388730251,1759339857286,-500.0,0.00020273,2]
[388730252,1759339857295,-500.0,0.00020273,2]
[388730253,1759339857308,-308.93,0.00020273,2]
[388730254,1759339857317,-500.0,0.00020273,2]
[388730255,1759339857326,-915.38,0.00020273,2]
[388730256,1759339857335,-500.0,0.00020273,2]
[388730257,1759339857345,-170.997892,0.00020273,2]
[388730258,1759339857354,-170.997892,0.00020273,2]
[388730259,1759339857364,-826.68,0.00020273,2]
[388730260,1759339857374,-500.0,0.00020273,2]
[388730261,1759339857383,-170.997892,0.00020273,2]
[388730262,1759339857392,-170.997892,0.00020273,2]
[388730263,1759339857401,-500.0,0.00020273,2]
[388730264,1759339857410,-500.0,0.00020273,2]
[388730265,1759339857419,-500.0,0.00020273,2]
[388730266,1759339857429,-513.06,0.00020273,2]
[388730267,1759339857438,-549.37,0.00020273,2]
[388730268,1759339857447,-500.0,0.00020273,2]
[388730269,1759339857456,-500.0,0.00020273,2]
[388730270,1759339857466,-500.0,0.00020273,2]
[388730271,1759339857475,-248.04,0.00020273,2]
[388730272,1759339857484,-500.0,0.00020273,2]
[388730273,1759339857493,-500.0,0.00020273,2]
[388730274,1759339857506,-500.0,0.00020273,2]
[388730275,1759339857515,-883.19,0.00020273,2]
[388730276,1759339857524,-500.0,0.00020273,2]
[388730277,1759339857534,-500.0,0.00020273,2]
[388730278,1759339857543,-568.0,0.00020273,2]
[388730279,1759339857553,-500.0,0.00020273,2]
[388730280,1759339857563,-500.0,0.00020273,2]
[388730281,1759339857572,-500.0,0.00020273,2]
[388730282,1759339857582,-500.0,0.00020273,2]
[388730283,1759339857591,-500.0,0.00020273,2]
[388730284,1759339857600,-500.0,0.00020273,2]
[388730285,1759339857609,-228.791014,0.00020273,2]
[388730286,1759339857617,-228.791014,0.00020273,2]
[388730287,1759339857626,-500.0,0.00020273,2]
[388730288,1759339857636,-228.791014,0.00020273,2]
[388730289,1759339857646,-228.791014,0.00020273,2]
[388730290,1759339857655,-500.0,0.00020273,2]
[388730291,1759339857665,-500.0,0.00020273,2]
[388730292,1759339857675,-500.0,0.00020273,2]
[388730293,1759339857684,-500.0,0.00020273,2]
[388730294,1759339857694,-500.0,0.00020273,2]
[388730295,1759339857703,-1123.54,0.00020273,2]
[388730296,1759339857712,-635.03,0.00020273,2]
[388730297,1759339857722,-500.0,0.00020273,2]
[388730298,1759339857731,-500.0,0.00020273,2]
[388730299,1759339857741,-330.59,0.00020273,2]
[388730300,1759339857751,-543.78,0.00020273,2]
[388730301,1759339857759,-500.0,0.00020273,2]
[388730302,1759339857768,-460.0,0.00020273,2]
[388730303,1759339857778,-520.92,0.00020273,2]
[388730304,1759339857788,-500.0,0.00020273,2]
[388730305,1759339857797,-500.0,0.00020273,2]
[388730306,1759339857806,-500.0,0.00020273,2]
[388730307,1759339857815,-547.86,0.00020273,2]
[388730308,1759339857824,-500.0,0.00020273,2]
[388730309,1759339857834,-500.0,0.00020273,2]
[388730310,1759339857843,-1058.74,0.00020273,2]
[388730311,1759339857852,-500.0,0.00020273,2]
[388730312,1759339857861,-500.0,0.00020273,2]
[388730313,1759339857871,-500.0,0.00020273,2]
[388730314,1759339857880,-498.13,0.00020273,2]
[388730315,1759339857891,-915.85,0.00020273,2]
[388730316,1759339857900,-500.0,0.00020273,2]
[388730317,1759339857909,-500.0,0.00020273,2]
[388730318,1759339857919,-500.0,0.00020273,2]
[388730319,1759339857929,-500.0,0.00020273,2]
[388730320,1759339857938,-500.0,0.00020273,2]
[388730321,1759339857947,-500.0,0.00020273,2]
[388730322,1759339857957,-235.99,0.00020273,2]
[388730323,1759339857966,-500.0,0.00020273,2]
[388730324,1759339857976,-500.0,0.00020273,2]
[388730325,1759339857985,-500.0,0.00020273,2]
[388730326,1759339857994,-500.0,0.00020273,2]
[388730327,1759339858005,-1001.22,0.00020273,2]
[388730328,1759339858014,-500.0,0.00020273,2]
[388730329,1759339858024,-500.0,0.00020273,2]
[388730330,1759339858154,-706.95,0.00020273,2]
[388730331,1759339858164,-2706.91,0.00020273,2]
[388730332,1759339858173,-500.0,0.00020273,2]
[388730333,1759339858183,-500.0,0.00020273,2]
[388730334,1759339858192,-3018.17,0.00020273,2]
[388730335,1759339858202,-500.0,0.00020273,2]
[388730336,1759339858211,-500.0,0.00020273,2]
[388730337,1759339858221,-500.0,0.00020273,2]
[388730338,1759339858235,-500.0,0.00020273,2]
[388730339,1759339858246,-500.0,0.00020273,2]
[388730340,1759339858256,-500.0,0.00020273,2]
[388730341,1759339858265,-1538.51,0.00020273,2]
[388730342,1759339858275,-500.0,0.00020273,2]
[388730343,1759339858285,-500.0,0.00020273,2]
[388730344,1759339858296,-500.0,0.00020273,2]
[388730345,1759339858305,-500.0,0.00020273,2]
[388730346,1759339858315,-1493.91,0.00020273,2]
[388730347,1759339858323,-500.0,0.00020273,2]
[388730348,1759339858332,-1010.61,0.00020273,2]
[388730349,1759339858341,-500.0,0.00020273,2]
[388730350,1759339858351,-500.0,0.00020273,2]
[388730351,1759339858360,-500.0,0.00020273,2]
[388730352,1759339858368,-500.0,0.00020273,2]
[388730353,1759339858378,-500.0,0.00020273,2]
[388730354,1759339858387,-500.0,0.00020273,2]
[388730355,1759339858396,-733.11,0.00020273,2]
[388730356,1759339858406,-1242.72,0.00020273,2]
[388730357,1759339858415,-687.25,0.00020273,2]
[388730358,1759339858425,-500.0,0.00020273,2]
[388730359,1759339858434,-500.0,0.00020273,2]
[388730360,1759339858444,-1123.0,0.00020273,2]
[388730361,1759339858453,-728.01,0.00020273,2]
[388730362,1759339858462,-500.0,0.00020273,2]
[388730363,1759339858472,-1899.75,0.00020273,2]
[388730364,1759339858481,-247.83752247,0.00020273,2]
[388730365,1759339858490,-500.0,0.00020273,2]
[388730366,1759339858500,-528.47,0.00020273,2]
[388730367,1759339858510,-151.0,0.00020273,2]
[388730368,1759339858520,-522.71,0.00020273,2]
[388730369,1759339858531,-2068.12,0.00020273,2]
[388730370,1759339858541,-500.0,0.00020273,2]
[388730371,1759339858550,-500.0,0.00020273,2]
[388730372,1759339858561,-151.10690839,0.00020273,2]
[388730373,1759339858571,-151.0,0.00020273,2]
[388730374,1759339858581,-627.31,0.00020273,2]
[388730375,1759339858590,-151.0,0.00020273,2]
[388730376,1759339858599,-151.0,0.00020273,2]
[388730377,1759339858609,-151.0,0.00020273,2]
[388730378,1759339858618,-631.17,0.00020273,2]
[388730379,1759339858629,-500.0,0.00020273,2]
[388730380,1759339858638,-500.0,0.00020273,2]
[388730381,1759339858647,-541.59,0.00020273,2]
[388730382,1759339858656,-500.0,0.00020273,2]
[388730383,1759339858665,-500.0,0.00020273,2]
[388730384,1759339858674,-747.86,0.00020273,2]
[388730385,1759339858684,-619.67,0.00020273,2]
[388730386,1759339858693,-500.0,0.00020273,2]
[388730387,1759339858703,-500.0,0.00020273,2]
[388730388,1759339858713,-500.0,0.00020273,2]
[388730389,1759339858722,-191.35,0.00020273,2]
[388730390,1759339858731,-1088.66,0.00020273,2]
[388730391,1759339858740,-1596.15,0.00020273,2]
[388730392,1759339858751,-500.0,0.00020273,2]
[388730393,1759339858760,-500.0,0.00020273,2]
[388730394,1759339858769,-891.76,0.00020273,2]
[388730395,1759339858778,-975.15,0.00020273,2]
[388730396,1759339858788,-500.0,0.00020273,2]
[388730397,1759339858798,-626.45,0.00020273,2]
[388730398,1759339858807,-782.15,0.00020273,2]
[388730399,1759339858816,-939.17,0.00020273,2]
[388730400,1759339858825,-712.07,0.00020273,2]
[388730401,1759339858834,-480.0,0.00020273,2]
[388730402,1759339858843,-500.0,0.00020273,2]
[388730403,1759339858852,-151.0,0.00020273,2]
[388730404,1759339858861,-319.04147788,0.00020273,2]
[388730405,1759339858869,-500.0,0.00020273,2]
[388730406,1759339858879,-500.0,0.00020273,2]
[388730407,1759339858887,-500.0,0.00020273,2]
[388730408,1759339858897,-699.88,0.00020273,2]
[388730409,1759339858906,-500.0,0.00020273,2]
[388730410,1759339858915,-500.0,0.00020273,2]
[388730411,1759339858924,-500.0,0.00020273,2]
[388730412,1759339858934,-500.0,0.00020273,2]
[388730413,1759339858943,-502.97,0.00020273,2]
[388730414,1759339858952,-172.55651801,0.00020273,2]
[388730415,1759339858961,-757.85,0.00020273,2]
[388730416,1759339858970,-500.0,0.00020273,2]
[388730417,1759339858979,-500.0,0.00020273,2]
[388730418,1759339858990,-644.97,0.00020273,2]
[388730419,1759339859001,-500.0,0.00020273,2]
[388730420,1759339859010,-542.85,0.00020273,2]
[388730421,1759339859019,-151.0,0.00020273,2]
[388730422,1759339859029,-551.56,0.00020273,2]
[388730423,1759339859038,-500.0,0.00020273,2]
[388730424,1759339859047,-440.0,0.00020273,2]
[388730425,1759339859056,-500.0,0.00020273,2]
[388730426,1759339859065,-1584.59,0.00020273,2]
[388730427,1759339859074,-572.93,0.00020273,2]
[388730428,1759339859083,-646.18,0.00020273,2]
[388730429,1759339859092,-1971.64,0.00020273,2]
[388730430,1759339859101,-500.0,0.00020273,2]
[388730431,1759339859110,-420.0,0.00020273,2]
[388730432,1759339859120,-151.0,0.00020273,2]
[388730433,1759339859129,-1806.04,0.00020273,2]
[388730434,1759339859139,-151.0,0.00020273,2]
[388730435,1759339859148,-500.0,0.00020273,2]
[388730436,1759339859157,-500.0,0.00020273,2]
[388730437,1759339859166,-1015.63,0.00020273,2]
[388730438,1759339859175,-151.0,0.00020273,2]
[388730439,1759339859185,-500.0,0.00020273,2]
[388730440,1759339859194,-500.0,0.00020274,2]
[388730441,1759339859203,-500.0,0.00020274,2]
[388730442,1759339859212,-151.0,0.000203,3]
[388730443,1759339859222,-1307.00546117,0.000203,2]
[388730444,1759339859235,-151.0,0.000204,3]
[388730445,1759339859245,-10419.8356453,0.000204,2]
[388730446,1759339859257,-1000.0,0.00020421,2]
[388730447,1759339859266,-1000.0,0.00020421,2]
[388730448,1759339859277,-1000.0,0.00020421,2]
[388730449,1759339859286,-500.0,0.00020421,2]
[388730450,1759339859296,-1000.0,0.00020421,2]
[388730451,1759339859306,-500.0,0.00020421,2]
[388730452,1759339859315,-1000.0,0.00020421,2]
[388730453,1759339859325,-1000.0,0.00020421,2]
[388730454,1759339859334,-1000.0,0.00020421,2]
[388730455,1759339859343,-1000.0,0.00020421,2]
[388730456,1759339859353,-501.47345628,0.00020421,2]
[388730457,1759339859364,-506.06717383,0.00020421,2]
[388730458,1759339859373,-1000.0,0.00020421,2]
[388730459,1759339859383,-1000.0,0.00020421,2]
[388730460,1759339859392,-1000.0,0.00020421,2]
[388730461,1759339859401,-1000.0,0.00020421,2]
[388730462,1759339859410,-1000.0,0.00020421,2]
[388730463,1759339859419,-1000.0,0.00020421,2]
[388730464,1759339859428,-1000.0,0.00020421,2]
[388730465,1759339859438,-1000.0,0.00020421,2]
[388730466,1759339859448,-1000.0,0.00020421,2]
[388730467,1759339859457,-1000.0,0.00020421,2]
[388730468,1759339859466,-1000.0,0.00020421,2]
[388730469,1759339859475,-166.0,0.00020426,2]
[388730470,1759339859484,-518.29434462,0.00020473,2]
[388730471,1759339859494,-500.0,0.00020473,2]
[388730472,1759339859504,-500.0,0.00020473,2]
[388730473,1759339859513,-500.0,0.00020473,2]
[388730474,1759339859523,-500.0,0.00020473,2]
[388730475,1759339859532,-500.0,0.00020473,2]
[388730476,1759339859540,-500.0,0.00020473,2]
[388730477,1759339859550,-500.0,0.00020473,2]
[388730478,1759339859558,-500.0,0.00020473,2]
[388730479,1759339859566,-6249.7740387,0.00020473,2]
[388730480,1759339859575,-9327.5775378,0.00020473,2]
[388730481,1759339859586,-404259.23282364,0.000205,2]
[388730482,1759339859596,-170.997892,0.000205,2]
[388730483,1759339859605,-170.997892,0.000205,2]
[388730484,1759339859614,-170.997892,0.000205,2]
[388730485,1759339859623,-170.997882,0.000205,2]
[388730486,1759339859632,-228.791014,0.000205,2]
[388730487,1759339859641,-228.791014,0.000205,2]
[388730488,1759339859650,-228.791014,0.000205,2]
[388730489,1759339859659,-228.791014,0.000205,2]
[388730490,1759339859668,-151.0,0.000205,2]
[388730491,1759339859677,-151.0,0.000205,2]
[388730492,1759339859687,-151.0,0.000205,2]
[388730493,1759339859696,-151.0,0.000205,2]
[388730494,1759339859706,-151.0,0.000205,2]
[388730495,1759339859716,-151.0,0.000205,2]
[388730496,1759339859726,-151.0,0.000205,2]
[388730497,1759339859735,-151.0,0.000205,2]
[388730498,1759339859745,-240.86186029,0.00020516,2]
[388730499,1759339859755,-1000.0,0.00020521,2]
[388730500,1759339859764,-500.0,0.00020521,2]
[388730501,1759339859773,-1000.0,0.00020521,2]
[388730502,1759339859782,-910.98424207,0.00020521,2]
[388730503,1759339859791,-500.0,0.00020521,2]
[388730504,1759339859800,-521.44036848,0.00020521,2]
[388730505,1759339859809,-413.1103713,0.00020521,2]
[388730506,1759339859818,-1000.0,0.00020521,2]
[388730507,1759339859827,-500.0,0.00020521,2]
[388730508,1759339859836,-1000.0,0.00020521,2]
[388730509,1759339859844,-847.1513624,0.00020521,2]
[388730510,1759339859853,-1000.0,0.00020521,2]
[388730511,1759339859862,-500.73488065,0.00020521,2]
[388730512,1759339859871,-500.0,0.00020521,2]
[388730513,1759339859880,-1000.0,0.00020521,2]
[388730514,1759339859890,-502.46090771,0.00020547,2]
[388730515,1759339859899,-719.71,0.00020547,2]
[388730516,1759339859908,-319.51144712,0.00020547,2]
[388730517,1759339859917,-380.0,0.00020547,2]
[388730518,1759339859926,-500.0,0.00020547,2]
[388730519,1759339859935,-500.0,0.00020547,2]
[388730520,1759339859944,-500.0,0.00020547,2]
[388730521,1759339859953,-500.0,0.00020547,2]
[388730522,1759339859962,-500.0,0.00020547,2]
[388730523,1759339859971,-500.0,0.00020547,2]
[388730524,1759339859982,-598.54,0.00020547,2]
[388730525,1759339859991,-500.0,0.00020547,2]
[388730526,1759339860003,-500.0,0.00020547,2]
[388730527,1759339860013,-500.0,0.00020547,2]
[388730528,1759339860023,-500.0,0.00020547,2]
[388730529,1759339860032,-500.0,0.00020547,2]
[388730530,1759339860042,-600.13,0.00020547,2]
[388730531,1759339860054,-500.0,0.00020547,2]
[388730532,1759339860064,-500.0,0.00020547,2]
[388730533,1759339860074,-500.0,0.00020547,2]
[388730534,1759339860083,-500.0,0.00020547,2]
[388730535,1759339860092,-500.0,0.00020547,2]
[388730536,1759339860102,-500.0,0.00020547,2]
[388730537,1759339860111,-915.38,0.00020547,2]
[388730538,1759339860121,-500.0,0.00020547,2]
[388730539,1759339860130,-826.68,0.00020547,2]
[388730540,1759339860139,-500.0,0.00020547,2]
[388730541,1759339860149,-500.0,0.00020547,2]
[388730542,1759339860158,-500.0,0.00020547,2]
[388730543,1759339860168,-360.0,0.00020547,2]
[388730544,1759339860177,-549.37,0.00020547,2]
[388730545,1759339860187,-500.0,0.00020547,2]
[388730546,1759339860196,-500.0,0.00020547,2]
[388730547,1759339860206,-500.0,0.00020547,2]
[388730548,1759339860216,-500.0,0.00020547,2]
[388730549,1759339860228,-500.0,0.00020547,2]
[388730550,1759339860237,-460.0,0.00020547,2]
[388730551,1759339860247,-883.19,0.00020547,2]
[388730552,1759339860256,-311.61065171,0.00020547,2]
[388730553,1759339860267,-500.0,0.00020547,2]
[388730554,1759339860276,-568.0,0.00020547,2]
[388730555,1759339860285,-500.0,0.00020547,2]
[388730556,1759339860294,-420.0,0.00020547,2]
[388730557,1759339860306,-403.87822302,0.00020547,2]
[388730558,1759339860315,-500.0,0.00020547,2]
[388730559,1759339860324,-500.0,0.00020547,2]
[388730560,1759339860333,-500.0,0.00020547,2]
[388730561,1759339860342,-500.0,0.00020547,2]
[388730562,1759339860351,-500.0,0.00020547,2]
[388730563,1759339860360,-500.0,0.00020547,2]
[388730564,1759339860369,-421.44,0.00020547,2]
[388730565,1759339860379,-547.85327465,0.00020547,2]
[388730566,1759339860388,-294.91,0.00020547,2]
[388730567,1759339860397,-1123.54,0.00020547,2]
[388730568,1759339860406,-635.03,0.00020547,2]
[388730569,1759339860416,-585.8063914,0.00020547,2]
[388730570,1759339860425,-500.0,0.00020547,2]
[388730571,1759339860434,-543.78,0.00020547,2]
[388730572,1759339860444,-500.0,0.00020547,2]
[388730573,1759339860454,-500.0,0.00020547,2]
[388730574,1759339860463,-302.50551267,0.00020547,2]
[388730575,1759339860472,-500.0,0.00020547,2]
[388730576,1759339860481,-547.86,0.00020547,2]
[388730577,1759339860490,-500.0,0.00020547,2]
[388730578,1759339860500,-500.0,0.00020547,2]
[388730579,1759339860509,-1058.74,0.00020547,2]
[388730580,1759339860518,-500.0,0.00020547,2]
[388730581,1759339860528,-500.0,0.00020547,2]
[388730582,1759339860538,-500.0,0.00020547,2]
[388730583,1759339860548,-915.85,0.00020547,2]
[388730584,1759339860557,-500.0,0.00020547,2]
[388730585,1759339860566,-269.00822185,0.00020547,2]
[388730586,1759339860575,-500.0,0.00020547,2]
[388730587,1759339860584,-500.0,0.00020547,2]
[388730588,1759339860593,-500.0,0.00020547,2]
[388730589,1759339860602,-500.0,0.00020547,2]
[388730590,1759339860611,-500.0,0.00020547,2]
[388730591,1759339860621,-500.0,0.00020547,2]
[388730592,1759339860630,-500.0,0.00020547,2]
[388730593,1759339860639,-500.0,0.00020547,2]
[388730594,1759339860649,-1001.22,0.00020547,2]
[388730595,1759339860657,-500.0,0.00020547,2]
[388730596,1759339860666,-500.0,0.00020547,2]
[388730597,1759339860676,-706.95,0.00020547,2]
[388730598,1759339860685,-2706.91,0.00020547,2]
[388730599,1759339860694,-500.0,0.00020547,2]
[388730600,1759339860703,-500.0,0.00020547,2]
[388730601,1759339860712,-3018.17,0.00020547,2]
[388730602,1759339860721,-500.0,0.00020547,2]
[388730603,1759339860730,-500.0,0.00020547,2]
[388730604,1759339860738,-500.0,0.00020547,2]
[388730605,1759339860748,-500.0,0.00020547,2]
[388730606,1759339860757,-500.0,0.00020547,2]
[388730607,1759339860766,-500.0,0.00020547,2]
[388730608,1759339860774,-1538.51,0.00020547,2]
[388730609,1759339860783,-500.0,0.00020547,2]
[388730610,1759339860792,-500.0,0.00020547,2]
[388730611,1759339860800,-500.0,0.00020547,2]
[388730612,1759339860810,-500.0,0.00020547,2]
[388730613,1759339860819,-1493.91,0.00020547,2]
[388730614,1759339860828,-500.0,0.00020547,2]
[388730615,1759339860837,-1010.61,0.00020547,2]
[388730616,1759339860847,-500.0,0.00020547,2]
[388730617,1759339860973,-598.14,0.00020547,2]
[388730618,1759339860983,-500.0,0.00020547,2]
[388730619,1759339860992,-500.0,0.00020547,2]
[388730620,1759339861001,-733.11,0.00020547,2]
[388730621,1759339861013,-1242.72,0.00020547,2]
[388730622,1759339861023,-687.25,0.00020547,2]
[388730623,1759339861031,-500.0,0.00020547,2]
[388730624,1759339861041,-500.0,0.00020547,2]
[388730625,1759339861052,-1123.0,0.00020547,2]
[388730626,1759339861063,-728.01,0.00020547,2]
[388730627,1759339861073,-500.0,0.00020547,2]
[388730628,1759339861083,-1899.75,0.00020547,2]
[388730629,1759339861093,-500.0,0.00020547,2]
[388730630,1759339861104,-528.47,0.00020547,2]
[388730631,1759339861112,-522.71,0.00020547,2]
[388730632,1759339861122,-2068.12,0.00020547,2]
[388730633,1759339861132,-500.0,0.00020547,2]
[388730634,1759339861142,-500.0,0.00020547,2]
[388730635,1759339861152,-627.31,0.00020547,2]
[388730636,1759339861161,-631.17,0.00020547,2]
[388730637,1759339861170,-500.0,0.00020547,2]
[388730638,1759339861180,-500.0,0.00020547,2]